[Event "Titled Tuesday Blitz February 28 Early 2023"]
[White "Petrova, Irina"]
[Black "Khamdamova, Afruza"]
[WhiteFideId "14124122"]
[BlackFideId "14210444"]
[WhiteElo "2084"]
[BlackElo "2210"]
[Result "1-0"]
[Round "06"]
[TimeControl "180+2"]
[Date "2023.02.28"]
[WhiteClock "0:00:22"]
[BlackClock "0:00:05"]

1. e4 {[%clk 0:03:00]}  c5 {[%clk 0:02:56]} 2. Nf3 {[%clk 0:03:00]}  Nc6 {[%clk 0:02:55]} 3. Bb5 {[%clk 0:02:58]}  e6 {[%clk 0:02:54]} 4. Bxc6 {[%clk 0:02:59]}  bxc6 {[%clk 0:02:54]} 5. O-O {[%clk 0:02:58]}  d5 {[%clk 0:02:54]} 6. e5 {[%clk 0:02:57]}  Ne7 {[%clk 0:02:51]} 7. d3 {[%clk 0:02:56]}  Ng6 {[%clk 0:02:49]} 8. b3 {[%clk 0:02:56]}  Be7 {[%clk 0:02:49]} 9. c4 {[%clk 0:02:56]}  O-O {[%clk 0:02:49]} 10. Nc3 {[%clk 0:02:56]}  Qc7 {[%clk 0:02:45]} 11. Re1 {[%clk 0:02:54]}  Rd8 {[%clk 0:02:45]} 12. Ba3 {[%clk 0:02:49]}  f6 {[%clk 0:02:35]} 13. Na4 {[%clk 0:02:33]}  fxe5 {[%clk 0:02:24]} 14. Qe2 {[%clk 0:02:32]}  Bf6 {[%clk 0:02:22]} 15. Rad1 {[%clk 0:02:28]}  Nf4 {[%clk 0:02:21]} 16. Qc2 {[%clk 0:02:24]}  Qf7 {[%clk 0:02:13]} 17. Bxc5 {[%clk 0:02:22]}  Qg6 {[%clk 0:02:12]} 18. g3 {[%clk 0:02:17]}  Qg4 {[%clk 0:01:47]} 19. Nxe5 {[%clk 0:02:11]}  Bxe5 {[%clk 0:01:41]} 20. Rxe5 {[%clk 0:02:12]}  Nh3+ {[%clk 0:01:36]} 21. Kg2 {[%clk 0:02:07]}  Nf4+ {[%clk 0:01:26]} 22. Kg1 {[%clk 0:02:07]}  dxc4 {[%clk 0:01:22]} 23. bxc4 {[%clk 0:02:03]}  Rd7 {[%clk 0:01:13]} 24. Re4 {[%clk 0:01:59]}  Nh3+ {[%clk 0:01:13]} 25. Kg2 {[%clk 0:01:58]}  Qf5 {[%clk 0:01:07]} 26. Qe2 {[%clk 0:01:48]}  Rf7 {[%clk 0:01:06]} 27. Be3 {[%clk 0:01:34]}  c5 {[%clk 0:01:02]} 28. Nxc5 {[%clk 0:01:25]}  Rb8 {[%clk 0:00:55]} 29. Rh4 {[%clk 0:01:20]}  e5 {[%clk 0:00:47]} 30. Ne4 {[%clk 0:00:58]}  Rb2 {[%clk 0:00:44]} 31. Rd2 {[%clk 0:00:39]}  Rxd2 {[%clk 0:00:44]} 32. Bxd2 {[%clk 0:00:35]}  h6 {[%clk 0:00:33]} 33. Be3 {[%clk 0:00:24]}  Kh7 {[%clk 0:00:29]} 34. Nd6 {[%clk 0:00:24]}  Qg6 {[%clk 0:00:14]} 35. Nxc8 {[%clk 0:00:20]}  Ng5 {[%clk 0:00:11]} 36. Bxg5 {[%clk 0:00:20]}  Qxg5 {[%clk 0:00:11]} 37. Nd6 {[%clk 0:00:20]}  Rd7 {[%clk 0:00:11]} 38. Ne4 {[%clk 0:00:19]}  Qf5 {[%clk 0:00:11]} 39. Nc5 {[%clk 0:00:19]}  Rc7 {[%clk 0:00:09]} 40. Qe4 {[%clk 0:00:19]}  g6 {[%clk 0:00:09]} 41. Qxf5 {[%clk 0:00:19]}  gxf5 {[%clk 0:00:10]} 42. Nb3 {[%clk 0:00:19]}  Rd7 {[%clk 0:00:10]} 43. d4 {[%clk 0:00:19]}  e4 {[%clk 0:00:10]} 44. Rf4 {[%clk 0:00:19]}  Kg6 {[%clk 0:00:10]} 45. d5 {[%clk 0:00:18]}  Kg5 {[%clk 0:00:09]} 46. Nd4 {[%clk 0:00:18]}  a5 {[%clk 0:00:07]} 47. Rxf5+ {[%clk 0:00:18]}  Kg6 {[%clk 0:00:07]} 48. Re5 {[%clk 0:00:18]}  Rc7 {[%clk 0:00:07]} 49. Nc6 {[%clk 0:00:17]}  a4 {[%clk 0:00:05]} 50. d6 {[%clk 0:00:17]}  Rxc6 {[%clk 0:00:06]} 51. d7 {[%clk 0:00:18]}  Rd6 {[%clk 0:00:06]} 52. Rd5 {[%clk 0:00:18]}  Rxd5 {[%clk 0:00:05]} 53. cxd5 {[%clk 0:00:19]}  Kf6 {[%clk 0:00:05]} 54. d8=Q+ {[%clk 0:00:20]}  Ke5 {[%clk 0:00:05]} 55. d6 {[%clk 0:00:20]}  Kd4 {[%clk 0:00:04]} 56. d7 {[%clk 0:00:20]}  e3 {[%clk 0:00:05]} 57. fxe3+ {[%clk 0:00:20]}  Kc3 {[%clk 0:00:05]} 58. Qe7 {[%clk 0:00:21]}  h5 {[%clk 0:00:05]} 59. d8=Q {[%clk 0:00:20]}  h4 {[%clk 0:00:06]} 60. Qec7+ {[%clk 0:00:21]}  Kb2 {[%clk 0:00:06]} 61. Qdb8+ {[%clk 0:00:21]}  Ka1 {[%clk 0:00:05]} 62. Qc3+ {[%clk 0:00:21]}  Kxa2 {[%clk 0:00:05]} 63. Qcb2# {[%clk 0:00:22]} 1-0


[Site "https://www.chess.com"]

[Event "Titled Tuesday Blitz February 28 Early 2023"]
[White "Matveeva, Olga"]
[Black "Real_taiatai"]
[WhiteFideId "24107018"]
[WhiteElo "2056"]
[BlackElo "2510"]
[Result "0-1"]
[Round "06"]
[TimeControl "180+2"]
[Date "2023.02.28"]
[WhiteClock "0:00:10"]
[BlackClock "0:00:20"]

1. d4 {[%clk 0:03:00]}  Nf6 {[%clk 0:02:59]} 2. c4 {[%clk 0:03:00]}  g6 {[%clk 0:03:00]} 3. Nf3 {[%clk 0:03:00]}  Bg7 {[%clk 0:03:00]} 4. g3 {[%clk 0:03:00]}  O-O {[%clk 0:03:01]} 5. Bg2 {[%clk 0:03:00]}  d6 {[%clk 0:03:01]} 6. O-O {[%clk 0:03:00]}  Nc6 {[%clk 0:03:01]} 7. Nc3 {[%clk 0:03:00]}  Bd7 {[%clk 0:03:02]} 8. e4 {[%clk 0:02:47]}  e5 {[%clk 0:03:02]} 9. d5 {[%clk 0:02:45]}  Ne7 {[%clk 0:03:03]} 10. Ne1 {[%clk 0:02:45]}  h6 {[%clk 0:03:01]} 11. Nd3 {[%clk 0:02:44]}  Nh7 {[%clk 0:02:45]} 12. f4 {[%clk 0:02:38]}  exf4 {[%clk 0:02:30]} 13. Bxf4 {[%clk 0:02:35]}  g5 {[%clk 0:02:05]} 14. Bd2 {[%clk 0:02:22]}  f5 {[%clk 0:02:00]} 15. Qe2 {[%clk 0:02:06]}  fxe4 {[%clk 0:01:38]} 16. Nxe4 {[%clk 0:01:49]}  Nf5 {[%clk 0:01:38]} 17. Bc3 {[%clk 0:01:44]}  Qe7 {[%clk 0:01:31]} 18. Bxg7 {[%clk 0:01:32]}  Qxg7 {[%clk 0:01:31]} 19. Rae1 {[%clk 0:01:28]}  Rae8 {[%clk 0:01:30]} 20. Qh5 {[%clk 0:01:21]}  Qd4+ {[%clk 0:00:49]} 21. Ndf2 {[%clk 0:01:10]}  Kg7 {[%clk 0:00:49]} 22. b3 {[%clk 0:01:08]}  Ne3 {[%clk 0:00:48]} 23. Nxg5 {[%clk 0:01:01]}  Nxg5 {[%clk 0:00:44]} 24. h4 {[%clk 0:00:45]}  Bg4 {[%clk 0:00:29]} 25. Nxg4 {[%clk 0:00:33]}  Nxf1+ {[%clk 0:00:20]} 26. Re3 {[%clk 0:00:14]}  Nxe3 {[%clk 0:00:19]} 27. Qxh6+ {[%clk 0:00:14]}  Kg8 {[%clk 0:00:19]} 28. Qg6+ {[%clk 0:00:12]}  Qg7 {[%clk 0:00:19]} 29. Nh6+ {[%clk 0:00:10]}  Kh8 {[%clk 0:00:20]} 0-1


[Site "https://www.chess.com"]

[Event "Titled Tuesday Blitz February 28 Early 2023"]
[White "Ezat, Mohamed"]
[Black "Sarkar, Justin"]
[WhiteFideId "10600906"]
[BlackFideId "2010011"]
[WhiteElo "2388"]
[BlackElo "2189"]
[Result "1/2-1/2"]
[Round "06"]
[TimeControl "180+2"]
[Date "2023.02.28"]
[WhiteClock "0:00:22"]
[BlackClock "0:01:20"]

1. e4 {[%clk 0:02:12]}  c5 {[%clk 0:02:57]} 2. d4 {[%clk 0:02:10]}  cxd4 {[%clk 0:02:55]} 3. c3 {[%clk 0:01:47]}  dxc3 {[%clk 0:02:53]} 4. Nxc3 {[%clk 0:01:39]}  e6 {[%clk 0:02:52]} 5. Nf3 {[%clk 0:01:21]}  Nc6 {[%clk 0:02:48]} 6. Bc4 {[%clk 0:01:19]}  Bb4 {[%clk 0:02:46]} 7. O-O {[%clk 0:01:09]}  Nge7 {[%clk 0:02:45]} 8. Qe2 {[%clk 0:01:01]}  O-O {[%clk 0:02:36]} 9. Rd1 {[%clk 0:00:52]}  Bxc3 {[%clk 0:02:18]} 10. bxc3 {[%clk 0:00:45]}  d5 {[%clk 0:02:18]} 11. Bd3 {[%clk 0:00:40]}  h6 {[%clk 0:01:53]} 12. Ba3 {[%clk 0:00:29]}  Re8 {[%clk 0:01:52]} 13. Bb5 {[%clk 0:00:27]}  Bd7 {[%clk 0:01:41]} 14. c4 {[%clk 0:00:25]}  a6 {[%clk 0:01:31]} 15. Bxc6 {[%clk 0:00:24]}  Bxc6 {[%clk 0:01:21]} 16. cxd5 {[%clk 0:00:22]}  exd5 {[%clk 0:01:20]} 17. e5 {[%clk 0:00:22]} 1/2-1/2


[Site "https://www.chess.com"]

[Event "Titled Tuesday Blitz February 28 Early 2023"]
[White "Balla, Tamas-Kristof"]
[Black "Vifleemskaia, Svetlana"]
[WhiteFideId "1208497"]
[BlackFideId "4129490"]
[WhiteElo "2334"]
[BlackElo "1930"]
[Result "0-1"]
[Round "06"]
[TimeControl "180+2"]
[Date "2023.02.28"]
[WhiteClock "0:00:14"]
[BlackClock "0:00:07"]

1. e4 {[%clk 0:03:00]}  e5 {[%clk 0:02:51]} 2. Nf3 {[%clk 0:02:59]}  Nc6 {[%clk 0:02:51]} 3. d4 {[%clk 0:02:59]}  exd4 {[%clk 0:02:51]} 4. Nxd4 {[%clk 0:03:00]}  Bb4+ {[%clk 0:02:50]} 5. c3 {[%clk 0:02:56]}  Bc5 {[%clk 0:02:50]} 6. Nf5 {[%clk 0:02:54]}  d5 {[%clk 0:02:31]} 7. Nxg7+ {[%clk 0:02:21]}  Kf8 {[%clk 0:02:30]} 8. Nf5 {[%clk 0:01:53]}  dxe4 {[%clk 0:02:18]} 9. Qxd8+ {[%clk 0:01:49]}  Nxd8 {[%clk 0:02:17]} 10. Ng3 {[%clk 0:01:45]}  f5 {[%clk 0:02:17]} 11. Bc4 {[%clk 0:01:41]}  Nf6 {[%clk 0:02:14]} 12. Bh6+ {[%clk 0:01:40]}  Ke7 {[%clk 0:02:11]} 13. O-O {[%clk 0:01:38]}  Be6 {[%clk 0:02:10]} 14. Bxe6 {[%clk 0:01:35]}  Kxe6 {[%clk 0:02:09]} 15. Nd2 {[%clk 0:01:28]}  Nf7 {[%clk 0:02:05]} 16. Bf4 {[%clk 0:01:28]}  Bd6 {[%clk 0:02:02]} 17. Bxd6 {[%clk 0:01:27]}  Nxd6 {[%clk 0:01:39]} 18. Rfe1 {[%clk 0:01:21]}  Rhe8 {[%clk 0:01:30]} 19. f3 {[%clk 0:01:19]}  Kf7 {[%clk 0:01:28]} 20. fxe4 {[%clk 0:01:19]}  fxe4 {[%clk 0:01:23]} 21. Re2 {[%clk 0:01:04]}  Re5 {[%clk 0:01:22]} 22. Rae1 {[%clk 0:00:58]}  Rae8 {[%clk 0:01:22]} 23. Ngf1 {[%clk 0:00:51]}  c5 {[%clk 0:01:08]} 24. Ne3 {[%clk 0:00:51]}  b5 {[%clk 0:01:01]} 25. Rf1 {[%clk 0:00:50]}  Kg6 {[%clk 0:00:56]} 26. Ref2 {[%clk 0:00:49]}  Nd5 {[%clk 0:00:47]} 27. Ng4 {[%clk 0:00:40]}  Rf5 {[%clk 0:00:44]} 28. Rxf5 {[%clk 0:00:24]}  Nxf5 {[%clk 0:00:45]} 29. Re1 {[%clk 0:00:23]}  e3 {[%clk 0:00:39]} 30. Nf3 {[%clk 0:00:20]}  Nf4 {[%clk 0:00:16]} 31. Nge5+ {[%clk 0:00:17]}  Kg7 {[%clk 0:00:13]} 32. g4 {[%clk 0:00:13]}  Nh4 {[%clk 0:00:10]} 33. Rxe3 {[%clk 0:00:13]}  Nxf3+ {[%clk 0:00:10]} 34. Rxf3 {[%clk 0:00:13]}  Ne2+ {[%clk 0:00:10]} 35. Kf2 {[%clk 0:00:13]}  Rxe5 {[%clk 0:00:11]} 36. Rd3 {[%clk 0:00:12]}  Nc1 {[%clk 0:00:10]} 37. Rd7+ {[%clk 0:00:12]}  Kg6 {[%clk 0:00:08]} 38. Rxa7 {[%clk 0:00:12]}  Re2+ {[%clk 0:00:08]} 39. Kg3 {[%clk 0:00:12]}  Rxb2 {[%clk 0:00:08]} 40. Ra6+ {[%clk 0:00:11]}  Kg7 {[%clk 0:00:08]} 41. h4 {[%clk 0:00:11]}  Rxa2 {[%clk 0:00:07]} 42. Rb6 {[%clk 0:00:11]}  Rb2 {[%clk 0:00:07]} 43. Kf4 {[%clk 0:00:11]}  b4 {[%clk 0:00:07]} 44. Rb7+ {[%clk 0:00:10]}  Kf6 {[%clk 0:00:05]} 45. cxb4 {[%clk 0:00:10]}  Rxb4+ {[%clk 0:00:05]} 46. Rxb4 {[%clk 0:00:10]}  cxb4 {[%clk 0:00:06]} 47. Ke3 {[%clk 0:00:10]}  b3 {[%clk 0:00:06]} 48. Kd2 {[%clk 0:00:10]}  Na2 {[%clk 0:00:05]} 49. Kd3 {[%clk 0:00:07]}  b2 {[%clk 0:00:04]} 50. Kc2 {[%clk 0:00:08]}  Nc3 {[%clk 0:00:04]} 51. Kxb2 {[%clk 0:00:08]}  Nd5 {[%clk 0:00:03]} 52. Kc2 {[%clk 0:00:08]}  Ke5 {[%clk 0:00:04]} 53. Kd3 {[%clk 0:00:09]}  Kf4 {[%clk 0:00:04]} 54. Kd4 {[%clk 0:00:10]}  Nf6 {[%clk 0:00:04]} 55. g5 {[%clk 0:00:10]}  Nh5 {[%clk 0:00:04]} 56. Kd5 {[%clk 0:00:11]}  Kg4 {[%clk 0:00:04]} 57. Ke6 {[%clk 0:00:12]}  Kxh4 {[%clk 0:00:05]} 58. Kf5 {[%clk 0:00:12]}  Ng3+ {[%clk 0:00:04]} 59. Kf6 {[%clk 0:00:12]}  Nh5+ {[%clk 0:00:04]} 60. Kf5 {[%clk 0:00:12]}  Ng7+ {[%clk 0:00:05]} 61. Kf6 {[%clk 0:00:12]}  Ne8+ {[%clk 0:00:04]} 62. Kf7 {[%clk 0:00:12]}  Kxg5 {[%clk 0:00:04]} 63. Kxe8 {[%clk 0:00:12]}  h5 {[%clk 0:00:05]} 64. Kf7 {[%clk 0:00:13]}  h4 {[%clk 0:00:06]} 65. Ke6 {[%clk 0:00:14]}  h3 {[%clk 0:00:07]} 66. Kd5 {[%clk 0:00:14]}  h2 {[%clk 0:00:07]} 0-1


[Site "https://www.chess.com"]

[Event "Titled Tuesday Blitz February 28 Early 2023"]
[White "Sliwicki, Damian"]
[Black "Golubev, Mikhail"]
[WhiteFideId "1127128"]
[BlackFideId "14100983"]
[WhiteElo "1988"]
[BlackElo "2374"]
[Result "0-1"]
[Round "06"]
[TimeControl "180+2"]
[Date "2023.02.28"]
[WhiteClock "0:00:04"]
[BlackClock "0:00:25"]

1. e4 {[%clk 0:03:00]}  c5 {[%clk 0:02:58]} 2. Nf3 {[%clk 0:02:59]}  d6 {[%clk 0:02:58]} 3. d4 {[%clk 0:02:59]}  Nf6 {[%clk 0:02:58]} 4. Nc3 {[%clk 0:02:58]}  cxd4 {[%clk 0:02:58]} 5. Qxd4 {[%clk 0:02:59]}  a6 {[%clk 0:02:56]} 6. Bg5 {[%clk 0:02:50]}  Nc6 {[%clk 0:02:54]} 7. Qd2 {[%clk 0:02:51]}  h6 {[%clk 0:02:44]} 8. Bxf6 {[%clk 0:02:49]}  gxf6 {[%clk 0:02:45]} 9. O-O-O {[%clk 0:02:49]}  h5 {[%clk 0:02:40]} 10. Kb1 {[%clk 0:02:48]}  h4 {[%clk 0:02:40]} 11. Nd4 {[%clk 0:02:45]}  Bh6 {[%clk 0:02:32]} 12. Qe1 {[%clk 0:02:33]}  Nxd4 {[%clk 0:02:25]} 13. Rxd4 {[%clk 0:02:33]}  Bf4 {[%clk 0:02:19]} 14. Nd5 {[%clk 0:02:29]}  Be5 {[%clk 0:02:14]} 15. Rc4 {[%clk 0:02:29]}  b5 {[%clk 0:01:37]} 16. Rc3 {[%clk 0:00:12]}  Bxc3 {[%clk 0:01:19]} 17. Qxc3 {[%clk 0:00:13]}  Kf8 {[%clk 0:01:18]} 18. f4 {[%clk 0:00:11]}  Bb7 {[%clk 0:01:18]} 19. Be2 {[%clk 0:00:10]}  Bxd5 {[%clk 0:01:16]} 20. exd5 {[%clk 0:00:11]}  Rc8 {[%clk 0:01:16]} 21. Qd3 {[%clk 0:00:11]}  Qb6 {[%clk 0:01:11]} 22. b3 {[%clk 0:00:08]}  b4 {[%clk 0:00:56]} 23. Qf5 {[%clk 0:00:08]}  Rc3 {[%clk 0:00:51]} 24. Bd3 {[%clk 0:00:07]}  Rg8 {[%clk 0:00:44]} 25. Re1 {[%clk 0:00:06]}  Rxg2 {[%clk 0:00:34]} 26. Qh7 {[%clk 0:00:04]}  Qf2 {[%clk 0:00:25]} 0-1


[Site "https://www.chess.com"]

[Event "Titled Tuesday Blitz February 28 Early 2023"]
[White "Ramirez Allo, Eduardo"]
[Black "Melikhov, Evgeny V."]
[WhiteFideId "2224178"]
[BlackFideId "4122046"]
[WhiteElo "2469"]
[BlackElo "2158"]
[Result "0-1"]
[Round "06"]
[TimeControl "180+2"]
[Date "2023.02.28"]
[WhiteClock "0:00:01"]
[BlackClock "0:00:19"]

1. d4 {[%clk 0:03:00]}  Nf6 {[%clk 0:02:59]} 2. c4 {[%clk 0:03:01]}  e6 {[%clk 0:02:59]} 3. Nf3 {[%clk 0:03:02]}  d5 {[%clk 0:02:59]} 4. g3 {[%clk 0:03:02]}  dxc4 {[%clk 0:02:59]} 5. Bg2 {[%clk 0:03:03]}  Nc6 {[%clk 0:03:00]} 6. O-O {[%clk 0:02:59]}  Rb8 {[%clk 0:02:59]} 7. a4 {[%clk 0:02:58]}  a6 {[%clk 0:02:58]} 8. a5 {[%clk 0:02:56]}  Bd6 {[%clk 0:02:58]} 9. Na3 {[%clk 0:02:53]}  e5 {[%clk 0:02:53]} 10. Nxc4 {[%clk 0:02:47]}  exd4 {[%clk 0:02:51]} 11. Nxd4 {[%clk 0:02:47]}  Nxd4 {[%clk 0:02:50]} 12. Qxd4 {[%clk 0:02:48]}  O-O {[%clk 0:02:44]} 13. Nxd6 {[%clk 0:02:41]}  Qxd6 {[%clk 0:02:39]} 14. Qxd6 {[%clk 0:02:41]}  cxd6 {[%clk 0:02:39]} 15. Bf4 {[%clk 0:02:42]}  Rd8 {[%clk 0:02:39]} 16. Rfd1 {[%clk 0:02:42]}  Ne8 {[%clk 0:02:38]} 17. Ra3 {[%clk 0:02:32]}  b6 {[%clk 0:02:25]} 18. Rb3 {[%clk 0:02:11]}  Bg4 {[%clk 0:02:22]} 19. Rxb6 {[%clk 0:02:05]}  Bxe2 {[%clk 0:02:20]} 20. Re1 {[%clk 0:01:43]}  Bb5 {[%clk 0:02:16]} 21. Re7 {[%clk 0:01:37]}  Kf8 {[%clk 0:02:10]} 22. Ra7 {[%clk 0:01:36]}  Rbc8 {[%clk 0:01:59]} 23. Bd5 {[%clk 0:01:34]}  Rc7 {[%clk 0:01:49]} 24. Rxc7 {[%clk 0:01:33]}  Nxc7 {[%clk 0:01:49]} 25. Bxd6+ {[%clk 0:01:34]}  Rxd6 {[%clk 0:01:39]} 26. Rxd6 {[%clk 0:01:33]}  Ke7 {[%clk 0:01:39]} 27. Rb6 {[%clk 0:00:53]}  Nxd5 {[%clk 0:01:39]} 28. Rb7+ {[%clk 0:00:54]}  Ke6 {[%clk 0:01:39]} 29. f4 {[%clk 0:00:52]}  g6 {[%clk 0:01:37]} 30. Kf2 {[%clk 0:00:51]}  h5 {[%clk 0:01:30]} 31. h4 {[%clk 0:00:50]}  Nb4 {[%clk 0:01:29]} 32. Ke3 {[%clk 0:00:47]}  Nc6 {[%clk 0:01:29]} 33. f5+ {[%clk 0:00:26]}  gxf5 {[%clk 0:01:25]} 34. Kf4 {[%clk 0:00:26]}  Nxa5 {[%clk 0:01:25]} 35. Rb6+ {[%clk 0:00:25]}  Nc6 {[%clk 0:01:24]} 36. Kg5 {[%clk 0:00:26]}  Ke5 {[%clk 0:01:19]} 37. Kxh5 {[%clk 0:00:25]}  f4 {[%clk 0:01:17]} 38. gxf4+ {[%clk 0:00:22]}  Kxf4 {[%clk 0:01:17]} 39. Kh6 {[%clk 0:00:20]}  Kg4 {[%clk 0:01:06]} 40. h5 {[%clk 0:00:19]}  Kh4 {[%clk 0:01:04]} 41. Rb7 {[%clk 0:00:16]}  Ne5 {[%clk 0:01:03]} 42. Rc7 {[%clk 0:00:07]}  Ng4+ {[%clk 0:00:55]} 43. Kg7 {[%clk 0:00:07]}  Kxh5 {[%clk 0:00:54]} 44. Kxf7 {[%clk 0:00:07]}  Kg5 {[%clk 0:00:53]} 45. Ke6 {[%clk 0:00:06]}  Kf4 {[%clk 0:00:50]} 46. Kd5 {[%clk 0:00:06]}  Ne3+ {[%clk 0:00:49]} 47. Kc5 {[%clk 0:00:06]}  Nc4 {[%clk 0:00:47]} 48. b3 {[%clk 0:00:03]}  Nd2 {[%clk 0:00:45]} 49. b4 {[%clk 0:00:03]}  Nc4 {[%clk 0:00:41]} 50. Re7 {[%clk 0:00:03]}  Kf5 {[%clk 0:00:38]} 51. Re1 {[%clk 0:00:03]}  Ne5 {[%clk 0:00:33]} 52. Kd5 {[%clk 0:00:01]}  Nd7 {[%clk 0:00:22]} 53. Kd6 {[%clk 0:00:01]}  Nb6 {[%clk 0:00:20]} 54. Re2 {[%clk 0:00:01]}  Bxe2 {[%clk 0:00:20]} 55. Kc6 {[%clk 0:00:01]}  Na4 {[%clk 0:00:19]} 0-1


[Site "https://www.chess.com"]

[Event "Titled Tuesday Blitz February 28 Early 2023"]
[White "Jiganchine, Roman"]
[Black "Vivas Zamora, Fabian Ernesto"]
[WhiteFideId "2603667"]
[BlackFideId "3902480"]
[WhiteElo "2291"]
[BlackElo "2262"]
[Result "0-1"]
[Round "06"]
[TimeControl "180+2"]
[Date "2023.02.28"]
[WhiteClock "0:00:20"]
[BlackClock "0:00:05"]

1. e4 {[%clk 0:02:59]}  e5 {[%clk 0:02:54]} 2. Nf3 {[%clk 0:02:59]}  Nc6 {[%clk 0:02:54]} 3. Nc3 {[%clk 0:02:58]}  Nf6 {[%clk 0:02:53]} 4. Bb5 {[%clk 0:02:57]}  Nd4 {[%clk 0:02:53]} 5. O-O {[%clk 0:02:56]}  Nxb5 {[%clk 0:02:49]} 6. Nxb5 {[%clk 0:02:54]}  d6 {[%clk 0:02:42]} 7. d4 {[%clk 0:02:47]}  exd4 {[%clk 0:02:31]} 8. Qxd4 {[%clk 0:02:41]}  Be7 {[%clk 0:02:28]} 9. e5 {[%clk 0:02:33]}  dxe5 {[%clk 0:02:27]} 10. Qxe5 {[%clk 0:02:27]}  O-O {[%clk 0:02:07]} 11. Qxc7 {[%clk 0:02:26]}  a6 {[%clk 0:01:58]} 12. Qxd8 {[%clk 0:02:19]}  Rxd8 {[%clk 0:01:59]} 13. Nbd4 {[%clk 0:02:18]}  Nd5 {[%clk 0:01:35]} 14. c3 {[%clk 0:02:16]}  Bf6 {[%clk 0:01:29]} 15. Re1 {[%clk 0:02:14]}  b5 {[%clk 0:01:22]} 16. Nc6 {[%clk 0:02:03]}  Rf8 {[%clk 0:01:22]} 17. Bg5 {[%clk 0:01:58]}  Bxg5 {[%clk 0:01:17]} 18. Nxg5 {[%clk 0:01:58]}  Bd7 {[%clk 0:01:11]} 19. Ne7+ {[%clk 0:01:43]}  Nxe7 {[%clk 0:01:09]} 20. Rxe7 {[%clk 0:01:43]}  Rad8 {[%clk 0:01:01]} 21. Rd1 {[%clk 0:01:25]}  Be6 {[%clk 0:01:00]} 22. Rxd8 {[%clk 0:01:08]}  Rxd8 {[%clk 0:01:01]} 23. h4 {[%clk 0:01:06]}  Bxa2 {[%clk 0:00:59]} 24. Nf3 {[%clk 0:01:04]}  h6 {[%clk 0:00:48]} 25. Ra7 {[%clk 0:00:55]}  Rd6 {[%clk 0:00:49]} 26. Nd4 {[%clk 0:00:55]}  Be6 {[%clk 0:00:41]} 27. f3 {[%clk 0:00:54]}  h5 {[%clk 0:00:37]} 28. Kf2 {[%clk 0:00:54]}  g6 {[%clk 0:00:34]} 29. Ke3 {[%clk 0:00:54]}  Kg7 {[%clk 0:00:34]} 30. Kf4 {[%clk 0:00:54]}  Kf6 {[%clk 0:00:34]} 31. Rb7 {[%clk 0:00:51]}  Bd5 {[%clk 0:00:32]} 32. Rc7 {[%clk 0:00:50]}  Rb6 {[%clk 0:00:29]} 33. Rc5 {[%clk 0:00:50]}  Be6 {[%clk 0:00:28]} 34. Nc2 {[%clk 0:00:49]}  a5 {[%clk 0:00:28]} 35. b4 {[%clk 0:00:48]}  a4 {[%clk 0:00:27]} 36. Na3 {[%clk 0:00:48]}  Bd7 {[%clk 0:00:19]} 37. c4 {[%clk 0:00:42]}  bxc4 {[%clk 0:00:15]} 38. Rxc4 {[%clk 0:00:42]}  Be6 {[%clk 0:00:14]} 39. Rd4 {[%clk 0:00:41]}  Bb3 {[%clk 0:00:05]} 40. b5 {[%clk 0:00:38]}  Ke6 {[%clk 0:00:05]} 41. Rb4 {[%clk 0:00:36]}  Kd6 {[%clk 0:00:05]} 42. Nc4+ {[%clk 0:00:33]}  Kc5 {[%clk 0:00:05]} 43. Rxb3 {[%clk 0:00:20]}  axb3 {[%clk 0:00:05]} 44. Nxb6 {[%clk 0:00:20]}  Kxb6 {[%clk 0:00:05]} 0-1


[Site "https://www.chess.com"]

[Event "Titled Tuesday Blitz February 28 Early 2023"]
[White "Levitan, Caleb Levi"]
[Black "Fieberg, Samuel"]
[WhiteFideId "14332620"]
[BlackFideId "12901717"]
[WhiteElo "1963"]
[BlackElo "2463"]
[Result "0-1"]
[Round "06"]
[TimeControl "180+2"]
[Date "2023.02.28"]
[WhiteClock "0:00:02"]
[BlackClock "0:01:26"]

1. e4 {[%clk 0:03:00]}  e6 {[%clk 0:03:00]} 2. d4 {[%clk 0:03:00]}  d5 {[%clk 0:03:00]} 3. Nc3 {[%clk 0:03:00]}  Nf6 {[%clk 0:03:00]} 4. e5 {[%clk 0:03:00]}  Nfd7 {[%clk 0:03:01]} 5. f4 {[%clk 0:03:00]}  c5 {[%clk 0:03:01]} 6. Nf3 {[%clk 0:03:00]}  Nc6 {[%clk 0:03:02]} 7. Be3 {[%clk 0:03:01]}  cxd4 {[%clk 0:03:02]} 8. Nxd4 {[%clk 0:03:00]}  Qb6 {[%clk 0:03:03]} 9. Na4 {[%clk 0:02:05]}  Qa5+ {[%clk 0:03:01]} 10. c3 {[%clk 0:02:05]}  Nxd4 {[%clk 0:03:00]} 11. Bxd4 {[%clk 0:01:55]}  b5 {[%clk 0:02:56]} 12. b4 {[%clk 0:01:48]}  Qxa4 {[%clk 0:02:53]} 13. Qd2 {[%clk 0:01:47]}  a5 {[%clk 0:02:35]} 14. bxa5 {[%clk 0:01:39]}  Qxa5 {[%clk 0:02:32]} 15. Be2 {[%clk 0:01:34]}  Bc5 {[%clk 0:02:26]} 16. O-O {[%clk 0:01:30]}  Bxd4+ {[%clk 0:02:26]} 17. Qxd4 {[%clk 0:01:28]}  Qb6 {[%clk 0:02:24]} 18. Qxb6 {[%clk 0:01:25]}  Nxb6 {[%clk 0:02:25]} 19. Bxb5+ {[%clk 0:01:25]}  Bd7 {[%clk 0:02:26]} 20. Bd3 {[%clk 0:01:20]}  Kd8 {[%clk 0:02:23]} 21. Rfb1 {[%clk 0:01:16]}  Kc7 {[%clk 0:02:23]} 22. Rb4 {[%clk 0:01:14]}  Rhb8 {[%clk 0:02:22]} 23. g4 {[%clk 0:01:03]}  Nc4 {[%clk 0:02:19]} 24. Bxc4 {[%clk 0:01:00]}  Rxb4 {[%clk 0:02:16]} 25. Bxd5 {[%clk 0:00:57]}  exd5 {[%clk 0:02:11]} 26. cxb4 {[%clk 0:00:57]}  Bxg4 {[%clk 0:02:03]} 27. Kf2 {[%clk 0:00:54]}  d4 {[%clk 0:02:03]} 28. Ke1 {[%clk 0:00:42]}  Kc6 {[%clk 0:02:03]} 29. Kd2 {[%clk 0:00:42]}  Kb5 {[%clk 0:02:03]} 30. a3 {[%clk 0:00:36]}  Bf5 {[%clk 0:01:58]} 31. Ra2 {[%clk 0:00:25]}  Kc4 {[%clk 0:01:57]} 32. Ra1 {[%clk 0:00:21]}  Kb3 {[%clk 0:01:57]} 33. Rg1 {[%clk 0:00:20]}  Rxa3 {[%clk 0:01:54]} 34. Rxg7 {[%clk 0:00:20]}  Ra2+ {[%clk 0:01:54]} 35. Ke1 {[%clk 0:00:13]}  d3 {[%clk 0:01:42]} 36. Rxf7 {[%clk 0:00:09]}  d2+ {[%clk 0:01:43]} 37. Ke2 {[%clk 0:00:04]}  Bg4+ {[%clk 0:01:40]} 38. Ke3 {[%clk 0:00:04]}  d1=Q {[%clk 0:01:39]} 39. e6 {[%clk 0:00:04]}  Kc4 {[%clk 0:01:29]} 40. Rc7+ {[%clk 0:00:02]}  Kb3 {[%clk 0:01:25]} 41. e7 {[%clk 0:00:02]}  Re2# {[%clk 0:01:26]} 0-1


[Site "https://www.chess.com"]